{"text_format":"1","workbook":"xlsx","n_sheets":8,"sheets":["変更届","登録事項変更届チェックリスト","表示事項","回答書","使い方","フロー図","審査員コード","改訂履歴"],"not_rendered":{"charts":0,"images":5,"macros":1,"external_links":6,"defined_names":54,"comments":0,"pivot_tables":0},"unopened":[],"bounds":{"document_bytes":16777216,"sheet_cells":100000,"rows_first":2000,"rows_last":500,"rows_between":2000,"halvings":0,"cell_chars":16384,"cell_head_chars":4096},"cells_cut":0,"cells_raw":0,"read":"whole","date_system":"1900"}

{"sheet":"変更届","index":0,"n_rows":73,"n_cols":37,"rows_kept":73,"cut":false,"hidden":false,"merged":[[49,26,49,35],[50,26,50,35],[1,2,1,37],[6,7,6,37],[7,7,7,20],[7,25,7,37],[8,7,8,20],[8,25,8,37],[15,2,15,6],[15,7,15,37],[17,2,17,6],[17,7,17,37],[8,21,8,24],[9,2,9,6],[19,2,19,6],[19,7,19,37],[9,7,9,37],[10,7,10,20],[10,25,10,37],[11,7,11,37],[12,11,12,12],[13,11,13,12],[23,23,23,25],[23,26,23,35],[23,36,23,37],[24,23,24,25],[24,26,24,35],[24,36,24,37],[21,2,21,22],[21,23,21,25],[21,26,21,35],[21,36,21,37],[22,23,22,25],[22,26,22,35],[22,36,22,37],[27,23,27,25],[27,26,27,35],[27,36,27,37],[28,23,28,25],[28,26,28,35],[28,36,28,37],[25,23,25,25],[25,26,25,35],[25,36,25,37],[26,23,26,25],[26,26,26,35],[26,36,26,37],[31,23,31,25],[31,26,31,35],[31,36,31,37],[32,23,32,25],[32,26,32,35],[32,36,32,37],[29,23,29,25],[29,26,29,35],[29,36,29,37],[30,23,30,25],[30,26,30,35],[30,36,30,37],[35,23,35,25],[35,26,35,35],[35,36,35,37],[36,23,36,25],[36,26,36,35],[36,36,36,37],[33,23,33,25],[33,26,33,35],[33,36,33,37],[34,23,34,25],[34,26,34,35],[34,36,34,37],[39,23,39,25],[39,26,39,35],[39,36,39,37],[40,23,40,25],[40,26,40,35],[40,36,40,37],[37,23,37,25],[37,26,37,35],[37,36,37,37],[38,23,38,25],[38,26,38,35],[38,36,38,37],[43,23,43,25],[43,26,43,35],[43,36,43,37],[44,23,44,25],[44,26,44,35],[44,36,44,37],[41,23,41,25],[41,26,41,35],[41,36,41,37],[42,23,42,25],[42,26,42,35],[42,36,42,37],[47,23,47,25],[47,26,47,35],[47,36,47,37],[48,23,48,25],[48,26,48,35],[48,36,48,37],[45,23,45,25],[45,26,45,35],[45,36,45,37],[46,23,46,25],[46,26,46,35],[46,36,46,37],[54,3,54,22],[55,23,55,25],[55,26,55,35],[55,36,55,37],[51,23,51,25],[51,26,51,35],[51,36,51,37],[52,23,52,25],[52,26,52,35],[52,36,52,37],[56,23,56,25],[56,26,56,35],[56,36,56,37],[57,23,57,25],[57,26,57,35],[57,36,57,37],[53,23,53,25],[53,26,53,35],[53,36,53,37],[60,23,60,25],[60,26,60,35],[60,36,60,37],[61,23,61,25],[61,26,61,35],[61,36,61,37],[58,23,58,25],[58,26,58,35],[58,36,58,37],[59,23,59,25],[59,26,59,35],[59,36,59,37],[64,26,64,35],[64,36,64,37],[65,23,65,25],[65,26,65,35],[65,36,65,37],[62,23,62,25],[62,26,62,35],[62,36,62,37],[63,23,63,25],[63,26,63,35],[63,36,63,37],[72,23,72,25],[72,26,72,35],[72,36,72,37],[16,2,16,6],[16,7,16,37],[70,23,70,25],[70,26,70,35],[70,36,70,37],[71,23,71,25],[71,26,71,35],[71,36,71,37],[68,23,68,25],[68,26,68,35],[68,36,68,37],[69,23,69,25],[69,26,69,35],[69,36,69,37],[66,23,66,25],[66,26,66,35],[66,36,66,37],[67,23,67,25],[67,26,67,35],[67,36,67,37],[64,23,64,25]]}
[]
[null,null,"JAS認証登録事項　変更届（有機・生産情報公表　共通届出様式）"]
[]
[null,null,"*変更届はエクセルにてご提出をお願いいたします。"]
[]
[null,null,null,null,null,null,null,null,null,null,null,null,null,null,null,"受付番号："]
[null,null,"事業者名"]
[null,null,"申請担当者名",null,null,null,null,null,null,null,null,null,null,null,null,null,null,null,null,null,null,"申請年月日"]
[null,null,"認証番号",null,null,null,null,null,null,null,null,null,null,null,null,null,null,null,null,null,null,"認証分類\n（プルダウン選択）"]
[null,null,"農林物資の種類\n（プルダウン選択）"]
[null,null,"Tel",null,null,null,null,null,null,null,null,null,null,null,null,null,null,null,null,null,null,"Fax"]
[null,null,"E-mail"]
[null,null,"変更届の実地確認について",null,null,null,null,null,null,null,null,null,null,"変更調査を実施する"]
[null,null,"(希望する方に印をつけてください)",null,null,null,null,null,null,null,null,null,null,"年次審査と合わせて実施をする"]
[]
[null,null,"変更内容\n（プルダウン選択）"]
[null,null,"下記の具体的変更内容欄に、右記の内容も必ずご入力\nください。",null,null,null,null,{"$f":"IFERROR(VLOOKUP(H16,表示事項!$A$2:$B$5,2,FALSE),\"\")","v":""}]
[null,null,"具体的変更内容\n（詳細を明記ください）"]
[null,null,"*商品、ラベル変更の際、以下にJASマークの大きさを記載ください。（右記の注意事項参照）"]
[null,null,"JASマーク大きさ\nA寸×B寸 \n単位(mm)"]
[]
[null,null,"①必要書類",null,null,null,null,null,null,null,null,null,null,null,null,null,null,null,null,null,null,null,null,"②提出\n書類番号",null,null,"③提出書類名\n（提出書類の頭に番号を振り、\n②番号欄に入力）",null,null,null,null,null,null,null,null,null,"④確認欄（プルダウン選択）"]
[null,"社名・住所・申請者名",1,"社名変更の理由及び変更日を証明できる書類"]
[null,"社名・住所・申請者名",2,"変更後の認証申請書、施設一覧"]
[null,"組織・担当者",1,"変更後の構成員図・組織図"]
[null,"組織・担当者",2,"変更後の担当者一覧"]
[null,"組織・担当者",3,"職務経歴書"]
[null,"組織・担当者",4,"ＪＡＳ講習会（改正ＪＡＳ法）修了証"]
[null,"施設",1,"新住所が記載された施設一覧"]
[null,"施設",2,"施設のレイアウト図・広域図"]
[null,"施設",3,"(外部施設)\n有機ＪＡＳ基準に準拠した取扱いをする旨明記した覚書の写し"]
[null,"圃場",1,"追加圃場が記載された施設一覧"]
[null,"圃場",2,"圃場地図"]
[null,"圃場",3,"３年間の圃場管理記録（有機飼料は２年間）"]
[null,"製造・小分けライン",1,"追加ラインのレイアウト図"]
[null,"製造・小分けライン",2,"生産行程・小分けのフロー図"]
[null,"製造・小分けライン",3,"機械・器具一覧"]
[null,"製造・小分けライン",4,"管理手順書類の改訂版（ライン追加により手順書に変更がある場合）"]
[null,"製造・小分けライン",5,"清掃・洗浄手順書（清掃手順に変更がある場合）"]
[null,"商品(共通)",1,"新商品が追加された商品一覧"]
[null,"商品(共通)",2,"商品仕様書及び複合原材料仕様書"]
[null,"商品(共通)",3,"商品の製造工程/小分け作業内容が確認できる作業手順書もしくはフロー図"]
[null,"商品(共通)",4,"包材・ラベルの版下(一括表示部およびＪＡＳマーク)"]
[null,"商品(共通)",5,"原材料一覧表"]
[null,"商品(輸入)",1,"新商品が追加された商品一覧"]
[null,"商品(輸入)",2,"海外（ＪＡＳ同等国）基準での有機認証証"]
[null,"商品(輸入)",3,"商品仕様書"]
[null,"商品(輸入)",4,"商品の製造工程フロー図"]
[null,"商品(輸入)",5,"包材・ラベルの版下(一括表示部およびＪＡＳマーク)"]
[null,"商品(輸出)",1,"新商品が追加された商品一覧"]
[null,"商品(輸出)",2,"商品に有機JASマークを付した認証事業者の最新の認証書"]
[null,"原材料",1,"原材料一覧"]
[null,"原材料",2,"原材料の最新の有機認証書"]
[null,"原材料",3,"添加物が別表1に該当することが確認できる規格書もしくは仕様書"]
[null,"原材料",4,"非有機原材料（酵母、種麹等菌類含む）が遺伝子組み換えでない、放射線照射していない証明書、もしくは説明資料"]
[null,"種子・種苗・種菌",1,"種子種苗種菌一覧 "]
[null,"種子・種苗・種菌",2,"使用禁止資材使用の有無を確認できる資料"]
[null,"種子・種苗・種菌",3,"遺伝子組み換え作物でない亊がわかる資料"]
[null,"養殖魚及び種苗",1,"養殖魚及び種苗（稚魚）一覧"]
[null,"養殖魚及び種苗",2,"種苗（稚魚）業者との覚書"]
[null,"使用資材(薬剤・洗浄剤)",1,"資材一覧"]
[null,"使用資材(薬剤・洗浄剤)",2,"SDSなど成分が確認できる書類"]
[null,"使用資材(薬剤・洗浄剤)",3,"薬剤・洗浄剤の使用手順"]
[null,"使用資材（肥料・農薬・防虫防鼠用薬剤等） ",1,"資材一覧"]
[null,"使用資材（肥料・農薬・防虫防鼠用薬剤等） ",2,"資材の仕様、製造工程が確認できる資料"]
[null,"給餌飼料",1,"給餌飼料一覧"]
[null,"給餌飼料",2,"追加する飼料の表示の写し"]
[null,"動物用医薬品",1,"動物用医薬品一覧"]
[null,"漁網防汚剤",1,"漁網防汚剤一覧"]
[null,"記録様式",1,"記録様式"]
[null,"ラベル",1,"包材・ラベルの版下(一括表示部およびＪＡＳマーク)"]
[null,"ラベル",2,"商品一覧"]
[null,"機械・器具",1,"機械・器具"]

{"sheet":"登録事項変更届チェックリスト","index":1,"n_rows":101,"n_cols":45,"rows_kept":101,"cut":false,"hidden":true,"merged":[[72,41,72,43],[71,41,71,43],[85,21,85,36],[86,21,86,36],[87,21,87,36],[48,21,48,36],[52,21,52,36],[80,21,80,36],[74,21,74,36],[75,21,75,36],[76,21,76,36],[77,21,77,36],[78,21,78,36],[71,21,71,36],[72,21,72,36],[83,37,83,39],[79,37,79,39],[81,37,81,39],[70,21,70,36],[66,37,66,39],[61,21,61,36],[63,21,63,36],[66,21,66,36],[58,21,58,36],[26,37,26,39],[27,21,27,36],[27,37,27,39],[47,37,47,39],[47,21,47,36],[91,21,91,36],[80,37,80,39],[76,37,76,39],[65,21,65,36],[84,21,84,36],[82,21,82,36],[82,37,82,39],[70,37,70,39],[57,37,57,39],[48,37,48,39],[52,37,52,39],[64,21,64,36],[67,21,67,36],[79,21,79,36],[81,21,81,36],[83,21,83,36],[68,37,68,39],[69,37,69,39],[51,37,51,39],[19,37,19,39],[33,21,33,36],[34,21,34,36],[7,2,7,6],[29,37,29,39],[6,2,6,6],[7,16,7,19],[10,7,10,15],[18,21,18,36],[20,21,20,36],[21,21,21,36],[23,21,23,36],[25,21,25,36],[6,31,6,39],[9,31,9,39],[8,31,8,39],[22,21,22,36],[22,37,22,39],[6,7,6,30],[23,37,23,39],[25,37,25,39],[19,21,19,36],[24,21,24,36],[26,21,26,36],[5,19,5,39],[1,2,1,39],[12,13,12,39],[13,13,13,39],[13,11,13,12],[12,11,12,12],[17,2,17,20],[15,2,15,6],[11,2,11,6],[17,37,17,39],[17,21,17,36],[15,7,15,39],[10,16,10,19],[7,7,7,15],[10,2,10,6],[9,2,9,6],[8,2,8,6],[11,35,11,39],[10,35,10,39],[11,31,11,34],[10,31,10,34],[98,37,98,39],[94,37,94,39],[94,21,94,36],[42,37,42,39],[44,37,44,39],[45,37,45,39],[96,37,96,39],[97,37,97,39],[41,21,41,36],[41,37,41,39],[67,37,67,39],[43,21,43,36],[43,37,43,39],[54,21,54,36],[54,37,54,39],[49,21,49,36],[55,21,55,36],[55,37,55,39],[49,37,49,39],[63,37,63,39],[53,21,53,36],[53,37,53,39],[56,21,56,36],[56,37,56,39],[62,21,62,36],[59,21,59,36],[57,21,57,36],[58,37,58,39],[59,37,59,39],[61,37,61,39],[86,37,86,39],[87,37,87,39],[88,37,88,39],[89,37,89,39],[88,21,88,36],[89,21,89,36],[100,21,100,36],[100,37,100,39],[60,21,60,36],[60,37,60,39],[85,37,85,39],[73,37,73,39],[74,37,74,39],[75,37,75,39],[77,37,77,39],[78,37,78,39],[73,21,73,36],[93,21,93,36],[93,37,93,39],[96,21,96,36],[97,21,97,36],[98,21,98,36],[99,21,99,36],[99,37,99,39],[68,21,68,36],[69,21,69,36],[90,21,90,36],[90,37,90,39],[92,37,92,39],[95,21,95,36],[46,21,46,36],[46,37,46,39],[7,31,7,39],[11,7,11,30],[10,20,10,30],[9,7,9,30],[8,20,8,30],[7,20,7,30],[42,21,42,36],[44,21,44,36],[45,21,45,36],[8,16,8,19],[8,7,8,15],[31,37,31,39],[33,37,33,39],[34,37,34,39],[36,37,36,39],[18,37,18,39],[20,37,20,39],[21,37,21,39],[29,21,29,36],[30,21,30,36],[30,37,30,39],[40,21,40,36],[28,41,28,43],[29,41,29,43],[30,41,30,43],[31,41,31,43],[32,41,32,43],[33,41,33,43],[34,41,34,43],[38,37,38,39],[39,37,39,39],[40,37,40,39],[37,21,37,36],[37,37,37,39],[36,21,36,36],[38,21,38,36],[39,21,39,36],[28,21,28,36],[32,21,32,36],[35,21,35,36],[31,21,31,36],[17,41,17,43],[18,41,18,43],[26,41,26,43],[27,41,27,43],[51,41,51,43],[52,41,52,43],[35,41,35,43],[36,41,36,43],[37,41,37,43],[38,41,38,43],[39,41,39,43],[40,41,40,43],[41,41,41,43],[42,41,42,43],[43,41,43,43],[50,41,50,43],[53,41,53,43],[54,41,54,43],[55,41,55,43],[56,41,56,43],[57,41,57,43],[58,41,58,43],[59,41,59,43],[60,41,60,43],[61,41,61,43],[62,41,62,43],[63,41,63,43],[64,41,64,43],[65,41,65,43],[66,41,66,43],[67,41,67,43],[68,41,68,43],[69,41,69,43],[70,41,70,43],[73,41,73,43],[74,41,74,43],[75,41,75,43],[76,41,76,43],[77,41,77,43],[78,41,78,43],[79,41,79,43],[80,41,80,43],[81,41,81,43],[98,41,98,43],[99,41,99,43],[100,41,100,43],[82,41,82,43],[83,41,83,43],[84,41,84,43],[85,41,85,43],[86,41,86,43],[87,41,87,43],[88,41,88,43],[89,41,89,43],[91,41,91,43],[90,41,90,43],[92,41,92,43],[93,41,93,43],[94,41,94,43],[95,41,95,43],[96,41,96,43],[97,41,97,43],[95,37,95,39],[91,37,91,39],[92,21,92,36],[17,44,17,53],[18,44,18,53],[19,44,19,53],[20,44,20,53],[21,44,21,53],[22,44,22,53],[23,44,23,53],[50,21,50,36],[19,41,19,43],[20,41,20,43],[21,41,21,43],[22,41,22,43],[23,41,23,43],[24,41,24,43],[25,41,25,43],[44,41,44,43],[45,41,45,43],[46,41,46,43],[47,41,47,43],[48,41,48,43],[49,41,49,43],[24,44,24,53],[25,44,25,53],[26,44,26,53],[27,44,27,53],[28,44,28,53],[29,44,29,53],[30,44,30,53],[31,44,31,53],[32,44,32,53],[33,44,33,53],[34,44,34,53],[35,44,35,53],[36,44,36,53],[37,44,37,53],[38,44,38,53],[39,44,39,53],[40,44,40,53],[41,44,41,53],[42,44,42,53],[43,44,43,53],[44,44,44,53],[45,44,45,53],[46,44,46,53],[47,44,47,53],[48,44,48,53],[49,44,49,53],[50,44,50,53],[51,44,51,53],[52,44,52,53],[53,44,53,53],[54,44,54,53],[55,44,55,53],[56,44,56,53],[57,44,57,53],[58,44,58,53],[59,44,59,53],[60,44,60,53],[61,44,61,53],[62,44,62,53],[63,44,63,53],[64,44,64,53],[65,44,65,53],[66,44,66,53],[67,44,67,53],[68,44,68,53],[71,44,71,53],[80,44,80,53],[81,44,81,53],[82,44,82,53],[83,44,83,53],[84,44,84,53],[85,44,85,53],[86,44,86,53],[87,44,87,53],[51,21,51,36],[98,44,98,53],[99,44,99,53],[100,44,100,53],[89,44,89,53],[90,44,90,53],[91,44,91,53],[92,44,92,53],[93,44,93,53],[94,44,94,53],[95,44,95,53],[96,44,96,53],[97,44,97,53],[88,44,88,53],[69,44,69,53],[70,44,70,53],[73,44,73,53],[74,44,74,53],[75,44,75,53],[76,44,76,53],[77,44,77,53],[78,44,78,53],[79,44,79,53],[72,44,72,53]]}
[]
[null,null,"JAS認証登録事項　変更届チェックリスト（有機・生産情報公表　共通届出様式）"]
[]
[]
[]
[null,null,null,null,null,null,null,null,null,null,null,null,null,null,null,"受付番号：",null,null,null,{"$f":"MID(CELL(\"filename\"),FIND(\"[\",CELL(\"filename\"))+1,FIND(\"]\",CELL(\"filename\"))-FIND(\"[\",CELL(\"filename\"))-1)","v":"変更届_JCS101-104_JAS_20251104.xlsm"}]
[null,null,"事業者名",null,null,null,null,{"$f":"変更届!H7","v":0},null,null,null,null,null,null,null,null,null,null,null,null,null,null,null,null,null,null,null,null,null,null,null,"審査員コード",null,null,null,null,null,null,null,null,null,null,null,"現場確認要"]
[null,null,"申請担当者名",null,null,null,null,{"$f":"変更届!H8","v":0},null,null,null,null,null,null,null,null,"申請年月日",null,null,null,{"$f":"変更届!Z8","v":"00:00:00"},null,null,null,null,null,null,null,null,null,null,null,null,null,null,null,null,null,null,null,null,null,null,"社名・住所・申請者名"]
[null,null,"認証番号",null,null,null,null,{"$f":"変更届!H9","v":0},null,null,null,null,null,null,null,null,"認証分類",null,null,null,{"$f":"変更届!Z9","v":0},null,null,null,null,null,null,null,null,null,null,"担当審査員名",null,null,null,null,null,null,null,null,null,null,null,"施設（追加のみ）"]
[null,null,"農林物資の種類",null,null,null,null,{"$f":"変更届!H10","v":0},null,null,null,null,null,null,null,null,null,null,null,null,null,null,null,null,null,null,null,null,null,null,null,null,null,null,null,null,null,null,null,null,null,null,null,"圃場（追加のみ）"]
[null,null,"Tel",null,null,null,null,{"$f":"変更届!H11","v":0},null,null,null,null,null,null,null,null,"Fax",null,null,null,{"$f":"変更届!Z11","v":0},null,null,null,null,null,null,null,null,null,null,"BV確認者",null,null,null,"BV事務所確認日",null,null,null,null,null,null,null,"製造・小分けライン"]
[null,null,"E-mail",null,null,null,null,{"$f":"変更届!H12","v":0}]
[null,null,"変更届の実地確認について",null,null,null,null,null,null,null,null,null,null,"変更調査を実施する"]
[null,null,"(希望する方に印をつけてください)",null,null,null,null,null,null,null,null,null,null,"年次審査と合わせて実施をする"]
[]
[null,null,"変更内容",null,null,null,null,"商品(共通)"]
[]
[null,null,"必要書類",null,null,null,null,null,null,null,null,null,null,null,null,null,null,null,null,null,null,"確認事項",null,null,null,null,null,null,null,null,null,null,null,null,null,null,null,"BV事務所",null,null,null,"審査員確認",null,null,"確認したエビデンス"]
[null,"社名・住所・申請者名",1,"社名変更の理由及び変更日を証明できる書類",null,null,null,null,null,null,null,null,null,null,null,null,null,null,null,null,null,"社名変更の理由が記載されている書類が提出されている。"]
[null,"社名・住所・申請者名",2,"変更後の認証申請書、施設一覧",null,null,null,null,null,null,null,null,null,null,null,null,null,null,null,null,null,"申請書の記載事項に漏れがない。"]
[null,"社名・住所・申請者名",2,"変更後の認証申請書、施設一覧",null,null,null,null,null,null,null,null,null,null,null,null,null,null,null,null,null,"変更内容が反映された申請書及び施設一覧が提出されている。"]
[null,"組織・担当者",1,"変更後の構成員図・組織図",null,null,null,null,null,null,null,null,null,null,null,null,null,null,null,null,null,"変更後の組織図が提出されている。"]
[null,"組織・担当者",1,"変更後の構成員図・組織図",null,null,null,null,null,null,null,null,null,null,null,null,null,null,null,null,null,"（小分け・輸入業者）格付担当者/責任者は営業部門とは別の組織である。"]
[null,"組織・担当者",2,"変更後の担当者一覧",null,null,null,null,null,null,null,null,null,null,null,null,null,null,null,null,null,"変更後の担当者一覧が提出されている。"]
[null,"組織・担当者",2,"変更後の担当者一覧",null,null,null,null,null,null,null,null,null,null,null,null,null,null,null,null,null,"担当職務の区分が明確である。"]
[null,"組織・担当者",3,"職務経歴書",null,null,null,null,null,null,null,null,null,null,null,null,null,null,null,null,null,"担当者/責任者の職務経歴が提出されている。"]
[null,"組織・担当者",3,"職務経歴書",null,null,null,null,null,null,null,null,null,null,null,null,null,null,null,null,null,"担当者/責任者の職務経歴は技術的基準を満たしている。"]
[null,"組織・担当者",4,"ＪＡＳ講習会（改正ＪＡＳ法）修了証",null,null,null,null,null,null,null,null,null,null,null,null,null,null,null,null,null,"JAS講習会（改正ＪＡＳ法）の受講証が提出されている。"]
[null,"組織・担当者",4,"ＪＡＳ講習会（改正ＪＡＳ法）修了証",null,null,null,null,null,null,null,null,null,null,null,null,null,null,null,null,null,"各責任者/格付担当者はJAS講習会（改正ＪＡＳ法）を受講している。"]
[null,"施設",1,"新住所が記載された施設一覧",null,null,null,null,null,null,null,null,null,null,null,null,null,null,null,null,null,"変更内容が反映された施設一覧である。"]
[null,"施設",2,"施設のレイアウト図・広域図",null,null,null,null,null,null,null,null,null,null,null,null,null,null,null,null,null,"対象施設が明確に示されている。"]
[null,"施設",3,"(外部施設)\n有機ＪＡＳ基準に準拠した取扱いをする旨明記した覚書の写し",null,null,null,null,null,null,null,null,null,null,null,null,null,null,null,null,null,"外部施設の覚書が提出されている。"]
[null,"施設",3,"(外部施設)\n有機ＪＡＳ基準に準拠した取扱いをする旨明記した覚書の写し",null,null,null,null,null,null,null,null,null,null,null,null,null,null,null,null,null,"外部施設の覚書は有機JAS基準に準拠する旨が明記されている。"]
[null,"圃場",1,"追加圃場が記載された施設一覧",null,null,null,null,null,null,null,null,null,null,null,null,null,null,null,null,null,"変更内容が反映された施設一覧が提出されている。"]
[null,"圃場",2,"圃場地図",null,null,null,null,null,null,null,null,null,null,null,null,null,null,null,null,null,"圃場地図と広域図が提出されている。"]
[null,"圃場",2,"圃場地図",null,null,null,null,null,null,null,null,null,null,null,null,null,null,null,null,null,"対象施設が明確であり、周囲の状況が記載されている。"]
[null,"圃場",3,"３年間の圃場管理記録（有機飼料は２年間）",null,null,null,null,null,null,null,null,null,null,null,null,null,null,null,null,null,"追加圃場の過去3年の栽培等履歴が提出されている。"]
[null,"圃場",3,"３年間の圃場管理記録（有機飼料は2年間）",null,null,null,null,null,null,null,null,null,null,null,null,null,null,null,null,null,"追加圃場の過去3年の栽培等履歴の内容は規格に適合している。"]
[null,"製造・小分けライン",1,"追加ラインのレイアウト図",null,null,null,null,null,null,null,null,null,null,null,null,null,null,null,null,null,"変更箇所が示されたレイアウト図が提出されている。"]
[null,"製造・小分けライン",2,"生産行程・小分けのフロー図",null,null,null,null,null,null,null,null,null,null,null,null,null,null,null,null,null,"フロー図は手順と整合性がとれている。\n内容を確認し、実地の要不要を判断する。"]
[null,"製造・小分けライン",3,"機械・器具一覧",null,null,null,null,null,null,null,null,null,null,null,null,null,null,null,null,null,"変更内容が示された機械・器具一覧である"]
[null,"製造・小分けライン",3,"機械・器具一覧",null,null,null,null,null,null,null,null,null,null,null,null,null,null,null,null,null,"機械・器具一覧には以下が記載されている。\n機械・器具名・使用用途・洗浄方法/薬剤の残留確認方法"]
[null,"製造・小分けライン",4,"管理手順書類の改訂版（ライン追加により手順書に変更がある場合）",null,null,null,null,null,null,null,null,null,null,null,null,null,null,null,null,null,"手順書が提出されている。"]
[null,"製造・小分けライン",4,"管理手順書類の改訂版（ライン追加により手順書に変更がある場合）",null,null,null,null,null,null,null,null,null,null,null,null,null,null,null,null,null,"変更内容が反映され、手順は技術適基準を満たしている。"]
[null,"製造・小分けライン",5,"清掃・洗浄手順書（清掃手順に変更がある場合）",null,null,null,null,null,null,null,null,null,null,null,null,null,null,null,null,null,"変更内容が反映され、手順は技術適基準を満たしている。"]
[null,"商品(共通)",1,"新商品が追加された商品一覧",null,null,null,null,null,null,null,null,null,null,null,null,null,null,null,null,null,"変更内容が記載された商品一覧が提出されている。"]
[null,"商品(共通)",1,"新商品が追加された商品一覧",null,null,null,null,null,null,null,null,null,null,null,null,null,null,null,null,null,"商品一覧には漏れがなく、以下が含まれている。\n商品番号・商品名・表示の名称・農林物資の種類・格付表示単位・製造の有無・格付表示方法"]
[null,"商品(共通)",1,"新商品が追加された商品一覧",null,null,null,null,null,null,null,null,null,null,null,null,null,null,null,null,null,"商品一覧の”農林物資の種類”は適切である。"]
[null,"商品(共通)",2,"商品仕様書及び複合原材料仕様書",null,null,null,null,null,null,null,null,null,null,null,null,null,null,null,null,null,"商品仕様書及び複合原材料仕様書が提出されている。"]
[null,"商品(共通)",2,"商品仕様書及び複合原材料仕様書",null,null,null,null,null,null,null,null,null,null,null,null,null,null,null,null,null,"配合割合は技術的基準を満たしている。"]
[null,"商品(共通)",3,"商品の製造工程フロー図",null,null,null,null,null,null,null,null,null,null,null,null,null,null,null,null,null,"製造工程は技術的基準を満たしている。"]
[null,"商品(共通)",4,"包材・ラベルの版下(一括表示部およびＪＡＳマーク)",null,null,null,null,null,null,null,null,null,null,null,null,null,null,null,null,null,"商品のラベルが提出されている。"]
[null,"商品(共通)",4,"包材・ラベルの版下(一括表示部およびＪＡＳマーク)",null,null,null,null,null,null,null,null,null,null,null,null,null,null,null,null,null,"一括表示の名称に”有機”若しくは”オーガニック”の表示がされている。"]
[null,"商品(共通)",4,"包材・ラベルの版下(一括表示部およびＪＡＳマーク)",null,null,null,null,null,null,null,null,null,null,null,null,null,null,null,null,null,"一括表示の名称及び原材料は日本農林規格箇条6を満たしている。"]
[null,"商品(共通)",4,"包材・ラベルの版下(一括表示部およびＪＡＳマーク)",null,null,null,null,null,null,null,null,null,null,null,null,null,null,null,null,null,"JASマークの縦、横の比率は飲食料品及び油脂の格付の表示及び表示の方法を満たしている。"]
[null,"商品(共通)",4,"包材・ラベルの版下(一括表示部およびＪＡＳマーク)",null,null,null,null,null,null,null,null,null,null,null,null,null,null,null,null,null,"JASマークの認証機関名は”ビューローベリタス”である"]
[null,"商品(共通)",4,"包材・ラベルの版下(一括表示部およびＪＡＳマーク)",null,null,null,null,null,null,null,null,null,null,null,null,null,null,null,null,null,"一括表示外で有機に関する説明が表記されている場合、表記は適切である。"]
[null,"商品(共通)",5,"原材料一覧表",null,null,null,null,null,null,null,null,null,null,null,null,null,null,null,null,null,"変更内容が記載された原材料一覧が提出されている。"]
[null,"商品(輸入)",1,"新商品が追加された商品一覧",null,null,null,null,null,null,null,null,null,null,null,null,null,null,null,null,null,"変更内容が記載された商品一覧が提出されている。"]
[null,"商品(輸入)",2,"海外（ＪＡＳ同等国）基準での有機認証証",null,null,null,null,null,null,null,null,null,null,null,null,null,null,null,null,null,"有機認証書が提出されている。"]
[null,"商品(輸入)",2,"海外（ＪＡＳ同等国）基準での有機認証証",null,null,null,null,null,null,null,null,null,null,null,null,null,null,null,null,null,"『証明書を発行する機関の名称及び住所』に記載された機関より証明書が発行されている。（欧州連合加盟国、英国、スイス、台湾）"]
[null,"商品(輸入)",3,"商品仕様書",null,null,null,null,null,null,null,null,null,null,null,null,null,null,null,null,null,"商品仕様書が提出されている。"]
[null,"商品(輸入)",3,"商品仕様書",null,null,null,null,null,null,null,null,null,null,null,null,null,null,null,null,null,"商品仕様書は、規格を満たしている"]
[null,"商品(輸入)",4,"商品の製造工程フロー図",null,null,null,null,null,null,null,null,null,null,null,null,null,null,null,null,null,"製造工程が提出されている。"]
[null,"商品(輸入)",4,"商品の製造工程フロー図",null,null,null,null,null,null,null,null,null,null,null,null,null,null,null,null,null,"製造工程は規格を満たしている。"]
[null,"商品(輸入)",4,"商品の製造工程フロー図",null,null,null,null,null,null,null,null,null,null,null,null,null,null,null,null,null,"製造、小分けは同等国内で実施している。"]
[null,"商品(輸入)",5,"包材・ラベルの版下(一括表示部およびＪＡＳマーク)",null,null,null,null,null,null,null,null,null,null,null,null,null,null,null,null,null,"包装資材が提出されている。"]
[null,"商品(輸入)",5,"包材・ラベルの版下(一括表示部およびＪＡＳマーク)",null,null,null,null,null,null,null,null,null,null,null,null,null,null,null,null,null,"一括表示の名称に”有機”若しくは”オーガニック”の表示がされている。"]
[null,"商品(輸入)",5,"包材・ラベルの版下(一括表示部およびＪＡＳマーク)",null,null,null,null,null,null,null,null,null,null,null,null,null,null,null,null,null,"一括表示の名称及び原材料は日本農林規格第5条を満たしている。"]
[null,"商品(輸入)",5,"包材・ラベルの版下(一括表示部およびＪＡＳマーク)",null,null,null,null,null,null,null,null,null,null,null,null,null,null,null,null,null,"JASマークの縦、横の比率は飲食料品及び油脂の格付の表示及び表示の方法を満たしている。"]
[null,"商品(輸入)",5,"包材・ラベルの版下(一括表示部およびＪＡＳマーク)",null,null,null,null,null,null,null,null,null,null,null,null,null,null,null,null,null,"JASマークの認証機関名は”ビューローベリタス”である。"]
[null,"商品(輸出)",1,"新商品が追加された商品一覧",null,null,null,null,null,null,null,null,null,null,null,null,null,null,null,null,null,"変更内容が記載された商品一覧が提出されている。"]
[null,"商品(輸出)",2,"商品に有機JASマークを付した認証事業者の最新の認証書",null,null,null,null,null,null,null,null,null,null,null,null,null,null,null,null,null,"他社の商品に外国格付表示をする場合、供給先の最新の認証書が提出されている。"]
[null,"原材料",1,"原材料一覧",null,null,null,null,null,null,null,null,null,null,null,null,null,null,null,null,null,"変更内容が記載された原材料一覧が提出されている。"]
[null,"原材料",2,"原材料の有機認証証",null,null,null,null,null,null,null,null,null,null,null,null,null,null,null,null,null,"変更原材料が明確に記載されている"]
[null,"原材料",3,"添加物等非有機原材料の場合は規格及び仕様がわかる書類",null,null,null,null,null,null,null,null,null,null,null,null,null,null,null,null,null,"添加物等非有機原材料はNon-GMOか、放射線照射されていない。"]
[null,"種子・種苗・種菌",1,"種子種苗種菌一覧 ",null,null,null,null,null,null,null,null,null,null,null,null,null,null,null,null,null,"変更内容が記載された種子種苗種菌一覧 が提出されている。"]
[null,"種子・種苗・種菌",2,"使用禁止資材使用の有無を確認できる資料",null,null,null,null,null,null,null,null,null,null,null,null,null,null,null,null,null,"追加種苗に使用された資材を事業者が把握している。\n年次審査でも確認すること。"]
[null,"種子・種苗・種菌",3,"遺伝子組み換え作物でない亊がわかる資料",null,null,null,null,null,null,null,null,null,null,null,null,null,null,null,null,null,"追加種苗は、Non-GMOである。"]
[null,"養殖魚及び種苗",1,"養殖魚及び種苗（稚魚）一覧",null,null,null,null,null,null,null,null,null,null,null,null,null,null,null,null,null,"変更内容が記載された養殖魚及び種苗（稚魚）一覧 が提出されている。"]
[null,"養殖魚及び種苗",2,"種苗（稚魚）業者との覚書",null,null,null,null,null,null,null,null,null,null,null,null,null,null,null,null,null,"供給事業者との覚書、契約書（JASに関して）提出されている。"]
[null,"使用資材(薬剤・洗浄剤)",1,"資材一覧",null,null,null,null,null,null,null,null,null,null,null,null,null,null,null,null,null,"変更内容が記載された資材一覧 が提出されている。"]
[null,"使用資材(薬剤・洗浄剤)",1,"資材一覧",null,null,null,null,null,null,null,null,null,null,null,null,null,null,null,null,null,"追加資材（防虫防鼠）が規格に適合している。"]
[null,"使用資材(薬剤・洗浄剤)",2,"SDSなど成分が確認できる書類",null,null,null,null,null,null,null,null,null,null,null,null,null,null,null,null,null,"SDSが提出されている。"]
[null,"使用資材(薬剤・洗浄剤)",3,"薬剤・洗浄剤の使用手順",null,null,null,null,null,null,null,null,null,null,null,null,null,null,null,null,null,"薬剤が除去できる手順である。"]
[null,"使用資材（肥料・農薬・防虫防鼠用薬剤等） ",1,"資材一覧",null,null,null,null,null,null,null,null,null,null,null,null,null,null,null,null,null,"変更内容が記載された資材一覧 が提出されており、以下が記載されている。\n商品名・製造者名・使用用途・使用場所・保管場所"]
[null,"使用資材（肥料・農薬・防虫防鼠用薬剤等） ",2,"資材の仕様、製造工程が確認できる資料",null,null,null,null,null,null,null,null,null,null,null,null,null,null,null,null,null,"使用資材（肥料・農薬・防虫防鼠用薬剤）は、規格に適合している。"]
[null,"給餌飼料",1,"給餌飼料一覧",null,null,null,null,null,null,null,null,null,null,null,null,null,null,null,null,null,"変更内容が記載された給餌飼料一覧 が提出されている。"]
[null,"給餌飼料",2,"追加する飼料の表示の写し",null,null,null,null,null,null,null,null,null,null,null,null,null,null,null,null,null,"飼料の仕様書が提出されている。"]
[null,"動物用医薬品",1,"動物用医薬品一覧",null,null,null,null,null,null,null,null,null,null,null,null,null,null,null,null,null,"変更内容が記載された動物用医薬品一覧 が提出されている。",null,null,null,null,null,null,null,null,null,null,null,null,null,null,null,"　"]
[null,"動物用医薬品",1,"動物用医薬品一覧",null,null,null,null,null,null,null,null,null,null,null,null,null,null,null,null,null,"動物用医薬品一覧には薬効別分類が記載されている。"]
[null,"漁網防汚剤",1,"漁網防汚剤一覧",null,null,null,null,null,null,null,null,null,null,null,null,null,null,null,null,null,"変更内容が記載された漁網防汚剤一覧が提出されている。"]
[null,"記録様式",1,"記録様式",null,null,null,null,null,null,null,null,null,null,null,null,null,null,null,null,null,"変更後の記録様式が提出されている。"]
[null,"記録様式",2,"記録様式",null,null,null,null,null,null,null,null,null,null,null,null,null,null,null,null,null,"手順書との整合性がある。"]
[null,"ラベル",1,"包材・ラベルの版下(一括表示部およびＪＡＳマーク)",null,null,null,null,null,null,null,null,null,null,null,null,null,null,null,null,null,"一括表示の名称に”有機”若しくは”オーガニック”の表示がされている。"]
[null,"ラベル",1,"包材・ラベルの版下(一括表示部およびＪＡＳマーク)",null,null,null,null,null,null,null,null,null,null,null,null,null,null,null,null,null,"ラベルが提出されている。"]
[null,"ラベル",1,"包材・ラベルの版下(一括表示部およびＪＡＳマーク)",null,null,null,null,null,null,null,null,null,null,null,null,null,null,null,null,null,"一括表示の名称及び原材料は日本農林規格第5条を満たしている。"]
[null,"ラベル",1,"包材・ラベルの版下(一括表示部およびＪＡＳマーク)",null,null,null,null,null,null,null,null,null,null,null,null,null,null,null,null,null,"JASマークの縦、横の比率は飲食料品及び油脂の格付の表示及び表示の方法を満たしている。"]
[null,"ラベル",1,"包材・ラベルの版下(一括表示部およびＪＡＳマーク)",null,null,null,null,null,null,null,null,null,null,null,null,null,null,null,null,null,"JASマークの認証機関名は”ビューローベリタス”である"]
[null,"ラベル",2,"商品一覧",null,null,null,null,null,null,null,null,null,null,null,null,null,null,null,null,null,"変更内容が記載された商品一覧が提出されている。"]
[null,"機械・器具",1,"機械・器具",null,null,null,null,null,null,null,null,null,null,null,null,null,null,null,null,null,"変更内容が記載された機械・器具一覧が提出されている。"]

{"sheet":"表示事項","index":2,"n_rows":5,"n_cols":2,"rows_kept":5,"cut":false,"hidden":true,"merged":[]}
["変更内容","表示事項"]
["施設","変更後のご使用開始予定時期を明記ください。\n「要実地審査]となった場合、年次審査との同時確認か、変更審査の実施をご希望かも明記ください。\n※要実地審査の場合、審査をご受審後、認証決定が下りるまでは有機品の\n保管、格付、出荷は禁止されておりますのでご注意ください。"]
["製造・小分けライン","変更後のご使用開始予定時期を明記ください。\n「要実地審査]となった場合、年次審査との同時確認か、変更審査の実施をご希望かも明記ください。\n※要実地審査の場合、審査をご受審後、認証決定が下りるまでは有機品の\n保管、格付、出荷は禁止されておりますのでご注意ください。"]
["原材料","原材料一覧の対象原材料に色をつけてください。"]
["商品(共通)","・原料が登録済か、新規かを明記ください。（新規の場合は別途変更届の申請が必要）\n・商品一覧の該当商品に色をつけてください。\n・農産物の生産行程管理者の商品（農産物）追加の場合は、種苗が登録済か否かを明記ください。（種苗が未登録であれば「種子・種苗・種菌」の変更届の申請が必要）"]

{"sheet":"回答書","index":3,"n_rows":35,"n_cols":35,"rows_kept":35,"cut":false,"hidden":true,"merged":[[5,2,5,6],[6,2,6,6],[6,7,6,30],[7,2,7,6],[7,7,7,15],[7,16,7,19],[7,20,7,30],[5,7,5,15],[5,16,5,19],[5,20,5,30],[1,2,1,30],[3,2,3,6],[3,7,3,30],[4,2,4,6],[4,16,4,19],[4,20,4,30],[2,19,2,30],[4,7,4,14],[17,2,17,6],[17,7,17,30],[18,7,18,30],[25,27,25,30],[18,2,18,6],[20,7,22,30],[19,7,19,30],[20,2,22,6],[32,2,34,6],[32,7,33,8],[32,9,33,10],[26,27,28,30],[34,7,34,8],[11,2,11,6],[12,2,12,6],[8,2,8,6],[8,7,8,30],[11,7,11,30],[12,7,12,30],[10,2,10,6],[10,7,10,30]]}
[]
[null,null,"認証登録事項変更に対する回答書"]
[null,null,null,null,null,null,null,null,null,null,null,null,null,null,null,"受付番号：",null,null,null,{"$f":"MID(CELL(\"filename\"),FIND(\"[\",CELL(\"filename\"))+1,FIND(\"]\",CELL(\"filename\"))-FIND(\"[\",CELL(\"filename\"))-1)","v":"変更届_JCS101-104_JAS_20251104.xlsm"}]
[null,null,"事業者名",null,null,null,null,{"$f":"登録事項変更届チェックリスト!H7","v":0}]
[null,null,"申請担当者名",null,null,null,null,{"$f":"登録事項変更届チェックリスト!H8","v":0},null,null,null,null,null,null,null,"様","申請年月日",null,null,null,{"$f":"登録事項変更届チェックリスト!U8","v":"00:00:00"}]
[null,null,"認証番号",null,null,null,null,{"$f":"登録事項変更届チェックリスト!H9","v":0},null,null,null,null,null,null,null,null,"認証分類",null,null,null,{"$f":"登録事項変更届チェックリスト!U9","v":0}]
[null,null,"農林物資の種類",null,null,null,null,{"$f":"登録事項変更届チェックリスト!H10","v":0}]
[null,null,"Tel",null,null,null,null,{"$f":"登録事項変更届チェックリスト!H11","v":0},null,null,null,null,null,null,null,null,"Fax",null,null,null,{"$f":"登録事項変更届チェックリスト!U11","v":0}]
[null,null,"E-mail",null,null,null,null,{"$f":"登録事項変更届チェックリスト!H12","v":0}]
[]
[null,null,"変更内容",null,null,null,null,{"$f":"登録事項変更届チェックリスト!H16","v":"商品(共通)"}]
[null,null,"具体的内容"]
[null,null,"JASマーク大きさ\nA寸×B寸 単位(mm)"]
[]
[null,null,"審査判定結果"]
[null,null,"※有機JAS、生産情報公表ＪＡＳに関する結果をご連絡致します。法等食品表示基準等のその他のJASや"]
[null,null,"食品衛生の関連法規については、貴社にてご確認をお願い申し上げます。"]
[null,null,"判定日"]
[null,null,"判定結果"]
[null,null,"実地確認について"]
[null,null,"判定に係るコメント",null,null,null,null,null,null,null,null,null,null,null,null,null,null,null,null,null,null,null,null,null,null,null,null,null,null,null,null,null,null,null,"一括表示の名称は有機農産物の日本農林規格第5条を満たしていると判断いたします。"]
[null,null,null,null,null,null,null,null,null,null,null,null,null,null,null,null,null,null,null,null,null,null,null,null,null,null,null,null,null,null,null,null,null,null,"一括表示の名称と原材料名は有機加工食品の日本農林規格第5条を満たしていると判断いたします。"]
[]
[]
[]
[null,null,"審査・判定に関する照会、お問い合わせ先",null,null,null,null,null,null,null,null,null,null,null,null,null,null,null,null,null,null,null,null,null,null,null,null,"確認者"]
[null,null,"ビューローベリタスジャパン株式会社　システム認証事業本部"]
[null,null,"TEL：045-274-6806　FAX：:045-274-7753"]
[null,null,"Email: cersus.yok@bureauveritas.com",null,null,null,null,null,null,null,null,null,null,null,null,null,null,null,null,null,null,null,null,null,null,null,null,null,null,null,null,null,null,"回答書送付時は、ここまでをPDFにして送付する。"]
[]
[]
[]
[null,null,"行政報告",null,null,null,null,"□",null,"あり",null,"具体的内容（行政報告内容）"]
[]
[null,null,null,null,null,null,null,"□",null,"なし"]

{"sheet":"使い方","index":4,"n_rows":48,"n_cols":31,"rows_kept":48,"cut":false,"hidden":true,"merged":[]}
[]
[null,"1,","フィルターをかける",null,null,null,null,null,null,null,null,null,null,null,null,null,null,null,null,null,null,null,null,null,null,null,null,null,null,2,"開発をあける　マクロの記録を押し、フィルター項目を選択　記録終了を押す"]
[]
[]
[]
[]
[]
[]
[]
[]
[]
[]
[]
[]
[]
[]
[]
[]
[]
[]
[]
[]
[]
[]
[]
[]
[]
[]
[]
[]
[]
[]
[]
[null,null,3,"マクロ修正　Range(\"H16\"). Valueと記載"]
[null,null,null,"開発VBAを押す"]
[null,null,null,"編集するシートをダブルクリック"]
[null,null,null,"Work Sheet, Changeを選択"]
[null,null,null,"以下を入力"]
[null,null,null," If Target.Column = 8 And Target.Row = 16 Then"]
[]
[null,null,null,"Call Macro1"]
[]
[null,null,null,"End If",null,null,null,null,null,null,null,"If Target・・とCall Macroは1行あける　Call Macro1とEnd ifを1行あける"]
[]
[]
[null,null,null,"保存ボタンを押す。"]
[null,null,null,"『はい。』を押す。"]
[null,null,null,"エクセル自体を保管する際マクロが有効なエクセルにして保存をする。（終了）"]

{"sheet":"フロー図","index":5,"n_rows":39,"n_cols":18,"rows_kept":39,"cut":false,"hidden":true,"merged":[[6,2,7,5],[10,9,11,13],[6,9,7,13],[14,9,15,13],[34,17,35,20],[34,9,35,13],[38,9,39,13],[38,2,39,5],[14,17,15,20],[18,17,19,20],[22,17,23,20],[22,2,23,5],[26,17,27,20],[30,17,31,20]]}
[]
[null,"変更届の確認フロー図"]
[]
[]
[null,null,"認証事業者",null,null,null,null,null,null,"BV事務局",null,null,null,null,null,null,null,"変更届担当審査員"]
[]
[null,null,"変更届提出",null,null,null,null,null,null,"受領"]
[]
[]
[]
[null,null,null,null,null,null,null,null,null,"事務所内容確認"]
[]
[]
[]
[null,null,null,null,null,null,null,null,null,"変更届確認依頼",null,null,null,null,null,null,null,"変更届受領"]
[]
[]
[]
[null,null,null,null,null,null,null,null,null,null,null,null,null,null,null,null,null,"内容確認"]
[]
[]
[]
[null,null,"不足分確認・提出",null,null,null,null,null,null,null,null,null,null,null,null,null,null,"不足資料照会"]
[]
[]
[]
[null,null,null,null,null,null,null,null,null,null,null,null,null,null,null,null,null,"内容確認"]
[]
[]
[]
[null,null,null,null,null,null,null,null,null,null,null,null,null,null,null,null,null,"回答書作成"]
[]
[]
[]
[null,null,null,null,null,null,null,null,null,"回答書受領",null,null,null,null,null,null,null,"回答書提出"]
[]
[]
[]
[null,null,"回答書受領",null,null,null,null,null,null,"回答書送付"]

{"sheet":"審査員コード","index":6,"n_rows":44,"n_cols":7,"rows_kept":44,"cut":false,"hidden":true,"merged":[]}
[]
["認証番号"]
[null,"認証分類","農林物資の種類"]
["FFJP","生産行程管理者","有機農産物"]
["MPJP","生産行程管理者","有機加工食品"]
["HWJP","小分け業者","有機農産物"]
["HWJP","小分け業者","有機加工食品"]
["HWJP","小分け業者","有機飼料"]
["HIJP","輸入業者","有機農産物"]
["HIJP","輸入業者","有機加工食品"]
["HIJP","輸入業者","有機畜産物"]
["FFJP・GFJP","外国生産行程管理者","有機農産物"]
["MPJP・GMJP","外国生産行程管理者","有機加工食品"]
["HWJP","外国小分け業者"]
["PFJP","生産行程管理者","生産情報公表豚肉"]
["SFJP","生産行程管理者","生産情報公表養殖魚"]
["BWJP","小分け業者","生産情報公表牛肉"]
["SWJP","小分け業者","生産情報公表養殖魚"]
["SFJP","外国生産行程管理者","生産情報公表養殖魚"]
["HEJP","外国格付表示業者","有機農産物"]
["HEJP","外国格付表示業者","有機加工食品"]
["HEJP","外国格付表示業者","有機畜産物"]
[]
["Industry codes",null,null,null,"審査員"]
[null,"認証分類","農林物資の種類",null,"森山",null,"割り振り：輸入→森山さん"]
["JAS11","生産行程管理者","有機農産物",null,"〇",null,"農産物（生産行程管理者）→森山さんOR菅さん"]
["JAS12","生産行程管理者","有機加工食品",null,"〇"]
["JAS21","小分け業者","有機農産物",null,"〇"]
["JAS22","小分け業者","有機加工食品",null,"〇"]
["JAS24","小分け業者","有機飼料",null,"〇"]
["JAS31","輸入業者","有機農産物",null,"〇"]
["JAS32","輸入業者","有機加工食品",null,"〇"]
["JAS33","輸入業者","有機畜産物",null,"〇"]
["JAS41","外国生産行程管理者","有機農産物",null,"〇"]
["JAS42","外国生産行程管理者","有機加工食品",null,"〇"]
["JAS51","外国小分け業者",null,null,"×"]
["JAS62","生産行程管理者","生産情報公表豚肉",null,"×"]
["JAS64","生産行程管理者","生産情報公表養殖魚",null,"×"]
["JAS71","小分け業者","生産情報公表牛肉",null,"×"]
["JAS74","小分け業者","生産情報公表養殖魚",null,"×"]
["JAS84","外国生産行程管理者","生産情報公表養殖魚",null,"×"]
["JAS101","外国格付表示業者","有機農産物",null,"〇"]
["JAS102","外国格付表示業者","有機加工食品",null,"〇"]
["JAS103","外国格付表示業者","有機畜産物",null,"×"]

{"sheet":"改訂履歴","index":7,"n_rows":18,"n_cols":5,"rows_kept":18,"cut":false,"hidden":true,"merged":[[11,0,16,0]]}
["日　付","ファイル名","内　容","実施者","承認者"]
["2020-07-06","登録事項変更届","フォーマットの見直し。必要書類の表示、実地審査希望時期確認欄、行政報告の記載欄、改訂履歴の追加","大幸　智穂","中川　将征"]
["2020-12-02","登録事項変更届","文言変更：\n変更後の社名での認証申請書→社名変更の理由及び変更日を証明できる書類\n農林物資の種類：生産情報公表JASを追加","宮井　あき","中川　将征"]
["2022-03-18","登録事項変更届チェックリスト","新設","宮井","景井"]
["2021-06-11","登録事項変更届","会社ウエブに伴い拡張子を変更（xlsm⇒xlsx)した為、確認事項毎に変更届を作成","宮井　あき","中川　将征"]
["2021-11-19","登録事項変更届","・フォーマットへの説明事項の追加\n包装資材に使用するJASマークは弊社から提供したデータを使用する事。\nデータがない場合、以下ウエブより「ロゴマーク提供依頼書」をダウンロードする旨追加\n・JASマークの大きさの示し方を変更（参考URLを追記）\n・機械・器具のシートを追加","宮井　あき","中川　将征"]
["2022-03-18","登録事項変更届","フォーマットの全面見直し。","宮井","景井"]
["2022-12-28","登録事項変更届","・フォーマットの拡張子の変更（xlsx→xlsm)\n確認事項毎に設置をしていたシートを一つに集約\n・JASマークの説明内容を変更","宮井","景井"]
["2022-12-28","登録事項変更届チェックリスト","認証分類に、外国格付表示業者を追加","宮井","景井"]
["2024-10-04","登録事項変更届チェックリスト","BV事務所確認欄に色付けをした。\n（内部監査NC対応）","大幸","景井"]
["2024-12-03","登録事項変更届チェックリスト","・「登録事項変更届チェックリスト」のシートに以下を追記した。\n輸出する際の必須書類、確認事項\nBV事務所確認日の欄\n・「審査員コード」に記載されていた福川審査員を削除（契約終了の為）\n","宮井","景井"]
["2025-10-20","変更届＆登録事項変更届チェックリスト全体に関して","改訂点）変更届とチェックリストは別であったが一体化に変更（変更届からチェックリストへのコピペの作業軽減ならびミス防止のため）\n\n【使用方法】\nWEBに変更届を掲載する際は、変更届以外のシートは非表示・ロックを掛ける。\n顧客から変更届が提出されら、ロック解除でチェックリストのシートも表示する。\n","窪田","景井"]
[null,"変更届のシート","・「下記の具体的変更内容欄に、右記の内容も必ずご入力ください。」の欄を追加\n\n・右側の注意事項に、”コンテンツの有効化”の説明を追記\n","窪田","景井"]
[null,"登録事項変更届チェックリストのシート","・担当審査員名をプルダウン選択に変更\n・4.包材・ラベルの版下(一括表示部およびＪＡＳマーク)：一括表示の名称及び原材料は日本農林規格箇条6を満たしている。に変更　（第5条→箇条6に修正）","窪田","景井"]
[null,"表示事項のシート","今回より新たに追加し、変更内容で、\n・施設　・製造・小分けライン・原材料　・商品(共通)　を選択すると変更届内に表示されるようにした。","窪田","景井"]
[null,"審査員コードのシート","外国格付表示業者を追加","窪田","景井"]
[null,"回答書のシート","ロゴをカラーから白黒へ変更","窪田","景井"]
["2025-11-04","変更届のシート","農林物資のプルダウンに、有機農産物及び有機加工食品（有機酒類含む）を追加し、複数併記の中点（・）を及びに変更","窪田","景井"]